Cogmind - Beta 14 @@@ ROGUE MODE // 2025.03.24 @ 21:37:11 // Winter2019/RPGLIKE Player: Lava Result: Destroyed by Y-45 Defender with Beam Rifle Performance ------------- Evolutions (2) 1000 Regions Visited (7) 1400 Robots Destroyed (66) 330 Value Destroyed (1805) 1805 Prototype IDs (26) 520 Alien Tech Used (0) 0 Bonus (539) 539 TOTAL SCORE: 5594 Bonus ------- High Alert Combat Kills 147 Follower Combat Kills 92 Aligned with FarCom 300 Cogmind --------- Core Integrity 0/1350 Matter 300/300 Energy 265/265 System Corruption 0% Temperature Cool (9) Movement Flying (29) Location -8/Materials Parts ------- > --- POWER (1) -------- Improved Ion Engine > --- PROPULSION (4) --- VTOL Module VTOL Module VTOL Module > --- UTILITY (3) ------ Signal Interpreter Hacking Suite > --- WEAPON (3) ------- (None) > --- INVENTORY (4) ---- Improved Power Shielding Hardened Medium Armor Plating Autogun Rocket Launcher Peak State ------------ > --- POWER ------------ Improved Ion Engine > --- PROPULSION ------- VTOL Module VTOL Module VTOL Module VTOL Module > --- UTILITY ---------- Signal Interpreter Hacking Suite Hacking Suite > --- WEAPON ----------- YOLO Cannon Enhanced Autogun > --- INVENTORY -------- Improved Power Shielding Hardened Medium Armor Plating Autogun Rocket Launcher [Rating: 42] Favorites ----------- Power Improved Ion Engine Engine Improved Ion Engine Propulsion VTOL Module Treads Light Treads Hover Unit Hover Unit Flight Unit VTOL Module Utility Signal Interpreter Device Sensor Array Processor Signal Interpreter Hackware Hacking Suite Protection Improved Propulsion Shielding Weapon Light Assault Rifle Energy Gun Small Laser Energy Cannon YOLO Cannon Ballistic Gun Light Assault Rifle Ballistic Cannon Improved Light Cannon Launcher Rocket Launcher Build | -11 -10 -10 -9 -9 -9 -8 -8 ------- Run | Yrd Mat Min Mat Min Exi Min Mat Slots Evolved 7 | 3 . 1 2 . . . 1 Power . | . . . . . . . . Propulsion 3 | 1 . 1 1 . . . . Utility 2 | 1 . . 1 . . . . Weapon 2 | 1 . . . . . . 1 Parts Attached 40 | 5 7 1 15 8 1 2 1 Power 3 | 1 . . 2 . . . . Engine 3 | 1 . . 2 . . . . Core . | . . . . . . . . Reactor . | . . . . . . . . Propulsion 14 | 2 4 1 7 . . . . Treads 2 | 2 . . . . . . . Leg . | . . . . . . . . Wheel . | . . . . . . . . Hover 2 | . 2 . . . . . . Flight 10 | . 2 1 7 . . . . Utility 6 | . 2 . 2 . . 2 . Device 1 | . 1 . . . . . . Storage . | . . . . . . . . Processor 1 | . 1 . . . . . . Hackware 2 | . . . 1 . . 1 . Protection 2 | . . . 1 . . 1 . Artifact . | . . . . . . . . Weapon 17 | 2 1 . 4 8 1 . 1 Energy Gun 1 | 1 . . . . . . . Energy Cannon 1 | . . . . . 1 . . Ballistic Gun 7 | 1 1 . 3 1 . . 1 Ballistic Cannon 4 | . . . 1 3 . . . Launcher 4 | . . . . 4 . . . Special Weapon . | . . . . . . . . Impact Weapon . | . . . . . . . . Slashing Weapon . | . . . . . . . . Piercing Weapon . | . . . . . . . . Special Melee Weapon . | . . . . . . . . Unidentified Prototypes 3 | . . . 2 . . . 1 Parts Lost 5 | . . . 1 . . . 4 Power . | . . . . . . . . Propulsion 1 | . . . . . . . 1 Utility 1 | . . . . . . . 1 Weapon 3 | . . . 1 . . . 2 Highest Loss Streak 4 | . . . 1 . . . 4 To Critical Strikes . | . . . . . . . . Average Slot Usage (%) 95 | . 94 100 100 100 88 88 72 Engine 11 | . 14 12 10 10 10 10 9 Treads 2 | . 9 . . . . . . Flight 33 | . 17 37 41 40 40 40 31 Device 5 | . 11 12 1 . . . . Processor 10 | . 11 12 10 10 10 10 9 Hackware 6 | . . . 9 10 10 18 13 Protection 3 | . . . 5 10 5 . . Ballistic Gun 15 | . 26 25 10 9 4 . 4 Ballistic Cannon 4 | . . . 10 8 4 . . Peak Build Rating 42 | 5 9 11 22 21 38 38 42 Average Rating 16 | 2 7 10 19 21 28 36 27 On Entrance 17 | . 5 9 11 21 21 35 38 Naked Turns . | . . . . . . . . Heaviest Build 28 | 7 8 8 16 16 25 25 28 Greatest Support 40 | 40 40 22 26 26 26 31 31 Greatest Overweight (x) . | . . . . . . . . Average Overweight (x) . | . . . . . . . . Largest Inventory Capacity 4 | 3 3 3 3 4 4 4 4 Average Capacity 3 | 3 3 3 3 3 4 4 4 Most Carried 4 | 3 3 3 3 3 4 4 4 Average Carried 2 | 2 2 2 2 3 3 3 4 Final Capacity 4 | 3 3 3 3 4 4 4 4 Final Carried 4 | . 3 3 3 3 4 4 4 Class Distribution -------------------- 77% | Sprinter 12% | Mutant 5% | Hacker-Scout 4% | Scout Dominant Class ---------------- Sprinter | -10/Materials Sprinter | -10/Mines Sprinter | -9/Materials Sprinter | -9/Mines Sprinter | -9/Exiles Hacker-Scout | -8/Mines Scout | -8/Materials Resources | -11 -10 -10 -9 -9 -9 -8 -8 ----------- Run | Yrd Mat Min Mat Min Exi Min Mat Matter Collected 1598 | 226 220 20 668 326 . 33 105 Remotely . | . . . . . . . . Salvage Created 1423 | . 332 112 601 143 . 21 214 Parts 107 | . 21 5 50 14 . 6 11 Haulers Intercepted . | . . . . . . . . Recyclers Shooed . | . . . . . . . . Parts Field Recycled . | . . . . . . . . Retrieved Matter . | . . . . . . . . Parts Self-Destructed . | . . . . . . . . Prevented . | . . . . . . . . Kills | -11 -10 -10 -9 -9 -9 -8 -8 ------- Run | Yrd Mat Min Mat Min Exi Min Mat Combat Hostiles Destroyed 69 | . 10 2 18 26 . 7 6 Guns 23 | . 10 2 8 3 . . . Cannons 19 | . . . 10 5 . 3 1 AOE 25 | . . . . 18 . 4 3 Classes Destroyed 9 | . 4 . 2 2 . . 1 Operator 5 | . 1 . 4 . . . . Watcher 8 | . 2 . 5 . . . 1 Swarmer 23 | . 6 . 3 7 . 7 . Grunt 16 | . 4 2 5 2 . . 3 Duelist 1 | . . . 1 . . . . Sentry 11 | . . . 9 . . . 2 Demolisher 1 | . . . . 1 . . . Hunter 1 | . . . . . . . 1 Assembled 16 | . . . . 16 . . . Best Kill Streak 15 | . 2 2 5 15 . 4 5 Combat Bots Only 15 | . 2 2 4 15 . 4 4 Max Kills in Single Turn 4 | . 1 1 1 4 . 3 3 Gunslinging . | . . . . . . . . Exploded 4 | . . . . 4 . 2 3 Melee . | . . . . . . . . Uniques/NPCs Destroyed . | . . . . . . . . Combat | -11 -10 -10 -9 -9 -9 -8 -8 -------- Run | Yrd Mat Min Mat Min Exi Min Mat Hostile Shots Fired 226 | . 66 5 47 33 . 20 55 Missed 72 | . 12 . 16 16 . 7 21 Damage Taken 2467 | . 593 74 440 496 . 210 654 Core 1997 | . 478 68 342 358 . 164 587 Absorbed by Shields . | . . . . . . . . Redirected to Core 1395 | . 366 20 259 348 . 158 244 Redirected to Shielding 63 | . . . 23 40 . . . Core Remaining (%) 60 | 100 . 23 . . . 58 . Volleys Fired 179 | . 66 5 65 28 . 5 10 Largest 2 | . 2 2 2 2 . 1 2 Hottest 125 | . 60 40 62 72 . 100 125 Shots Fired 344 | . 132 10 130 55 . 5 12 Gun 237 | . 132 10 67 25 . . 3 Cannon 91 | . . . 63 14 . 5 9 Launcher 16 | . . . . 16 . . . Special . | . . . . . . . . Kinetic 308 | . 126 10 130 39 . . 3 Thermal 20 | . 6 . . . . 5 9 Explosive 16 | . . . . 16 . . . Electromagnetic . | . . . . . . . . Robot Hit Streak 11 | . 11 7 9 7 . 9 3 Robot Miss Streak 4 | . 4 1 2 2 . 2 2 Penetration Max . | . . . . . . . . Secondary Targets 2 | . 2 . . . . . . Max Gunslinging Chain 1 | . 1 . . . . . . Shots Hit Robots 197 | . 74 8 76 31 . 3 5 Core Hits 127 | . 29 6 36 47 . 5 4 Critical Kills 2 | . . . . . . . 2 Critical Parts Destroyed 1 | . . . 1 . . . . Critical Strikes 5 | . . . 3 . . . 2 Meltdown 2 | . . . . . . . 2 Destroy 2 | . . . 2 . . . . Blast 1 | . . . 1 . . . . Melee Attacks . | . . . . . . . . Impact . | . . . . . . . . Slashing . | . . . . . . . . Piercing . | . . . . . . . . Sneak Attacks . | . . . . . . . . Combat Hostiles . | . . . . . . . . Follow-up Attacks . | . . . . . . . . Damage Inflicted 5292 | . 653 70 1338 1634 . 712 885 Guns 1599 | . 653 70 656 220 . . . Cannons 1897 | . . . 682 213 . 357 645 Explosions 1796 | . . . . 1201 . 355 240 Melee . | . . . . . . . . Ramming . | . . . . . . . . Kinetic 2451 | . 610 70 1338 433 . . . Thermal 1640 | . 43 . . . . 712 885 Explosive 1201 | . . . . 1201 . . . Electromagnetic . | . . . . . . . . Impact . | . . . . . . . . Slashing . | . . . . . . . . Piercing . | . . . . . . . . Highest Corruption . | . . . . . . . . Average Corruption . | . . . . . . . . Corruption Purged . | . . . . . . . . Corruption Blocked . | . . . . . . . . Overload Shots . | . . . . . . . . Overflow Damage 371 | . . . 16 33 . 206 116 Projectiles 304 | . . . 16 . . 172 116 Explosions 67 | . . . . 33 . 34 . Melee . | . . . . . . . . Knockbacks 5 | . . . 3 2 . . . Impact . | . . . . . . . . Kinetic 5 | . . . 3 2 . . . Secondary . | . . . . . . . . Self-Inflicted Damage 430 | . . . . 175 . 100 155 Shots 8 | . . . . 4 . 2 2 Rammed . | . . . . . . . . Targets Rammed . | . . . . . . . . Kicked . | . . . . . . . . Crushed . | . . . . . . . . Highest Temperature 256 | . 87 29 256 58 . 16 4 Average Temperature 26 | . 18 14 34 17 . 10 4 Received Heat Transfer 674 | . 264 60 150 47 . . 153 Siege Activations . | . . . . . . . . Robots Corrupted . | . . . . . . . . Combat Hostiles . | . . . . . . . . Parts Fried . | . . . . . . . . Impact Corruptions . | . . . . . . . . Robots Melted 2 | . . . . . . . 2 Combat Hostiles 2 | . . . . . . . 2 Parts Melted 2 | . . . . . . 2 . Heat Transferred 1380 | . 100 . . . . 560 720 Parts Sabotaged . | . . . . . . . . Parts Stolen . | . . . . . . . . Parts Stripped . | . . . . . . . . Power Chain Reactions . | . . . . . . . . Alert | -11 -10 -10 -9 -9 -9 -8 -8 ------- Run | Yrd Mat Min Mat Min Exi Min Mat Peak Influence 684 | . 275 153 646 684 . 226 420 Initial 251 | . . 103 59 251 . . 87 Average 283 | . 132 122 372 567 . 158 306 Maximum Alert Level 2 | . 1 . 2 2 . 1 2 Low Security (%) 45 | 100 73 100 22 . . 63 23 Level 1 24 | . 26 . 25 14 . 36 73 Level 2 29 | . . . 52 85 . . 2 Level 3 . | . . . . . . . . Level 4 . | . . . . . . . . Level 5 . | . . . . . . . . High Security . | . . . . . . . . Max Security . | . . . . . . . . Squads Dispatched 3 | . 1 . 1 1 . . . Investigation 2 | . 1 . . 1 . . . Extermination . | . . . . . . . . Reinforcement 1 | . . . 1 . . . . Assault . | . . . . . . . . Garrison . | . . . . . . . . Intercept . | . . . . . . . . Searches Triggered . | . . . . . . . . Construction Impeded . | . . . . . . . . Haulers Reinforced . | . . . . . . . . Active Scanning Responses . | . . . . . . . . Cargo Convoy Interrupts . | . . . . . . . . Stealth | -11 -10 -10 -9 -9 -9 -8 -8 --------- Run | Yrd Mat Min Mat Min Exi Min Mat Distress Signals 4 | . 2 . 1 . . . 1 Communications Jammed . | . . . . . . . . Distress Signals . | . . . . . . . . Times Spotted 99 | . 19 2 34 30 . 6 8 Peak Tracking Total 19 | . 4 2 5 19 . 3 4 Tactical Retreats 5 | . 2 . 1 2 . . . Traps | -11 -10 -10 -9 -9 -9 -8 -8 ------- Run | Yrd Mat Min Mat Min Exi Min Mat Traps Triggered 2 | . 1 . 1 . . . . Indirectly . | . . . . . . . . Trap Hack Attempts . | . . . . . . . . Triggered . | . . . . . . . . Disarmed 12 | . 4 . 8 . . . . Reprogrammed . | . . . . . . . . Reused . | . . . . . . . . Traps Extracted . | . . . . . . . . Installed . | . . . . . . . . Triggered . | . . . . . . . . Machines | -11 -10 -10 -9 -9 -9 -8 -8 ---------- Run | Yrd Mat Min Mat Min Exi Min Mat Machines Disabled 7 | . . . 1 2 . . 4 Max in Single Turn 1 | . . . 1 1 . . 1 Machines Repaired . | . . . . . . . . Machines Dismantled . | . . . . . . . . Machines Sabotaged . | . . . . . . . . Overloaded Fab Kills . | . . . . . . . . Hacking | -11 -10 -10 -9 -9 -9 -8 -8 --------- Run | Yrd Mat Min Mat Min Exi Min Mat Machines Accessed 21 | . 8 2 9 1 1 . . Terminals 19 | . 8 2 9 . . . . Fabricators . | . . . . . . . . Repair Stations . | . . . . . . . . Recycling Units . | . . . . . . . . Scanalyzers . | . . . . . . . . Garrison Access . | . . . . . . . . Total Hacks 44 | . 16 4 22 1 1 . . Successful 15 | . 6 . 7 1 1 . . Failed 29 | . 10 4 15 . . . . Catastrophic 7 | . 5 . 2 . . . . Database Lockouts . | . . . . . . . . Manual 33 | . 8 4 20 . 1 . . Terminals 42 | . 16 4 22 . . . . Fabricators . | . . . . . . . . Repair Stations . | . . . . . . . . Recycling Units . | . . . . . . . . Scanalyzers . | . . . . . . . . Garrison Access . | . . . . . . . . Terminal Hacks 15 | . 6 . 7 1 1 . . Open Door 1 | . . . . 1 . . . Branch Access Points 1 | . . . 1 . . . . Emergency Access Points 1 | . 1 . . . . . . Terminal Index 1 | . 1 . . . . . . Recycling Unit Index 1 | . 1 . . . . . . Unreport Threat 2 | . . . 2 . . . . Disarm Traps 5 | . 2 . 3 . . . . Security Status 1 | . 1 . . . . . . Hauler Manifests 1 | . . . 1 . . . . Derelict Proto ID Bank 1 | . . . . . 1 . . Fabricator Hacks . | . . . . . . . . Repair Station Hacks . | . . . . . . . . Recycling Unit Hacks . | . . . . . . . . Scanalyzer . | . . . . . . . . Garrison Access Hacks . | . . . . . . . . Unauthorized Hacks . | . . . . . . . . Terminals . | . . . . . . . . Fabricators . | . . . . . . . . Repair Stations . | . . . . . . . . Recycling Units . | . . . . . . . . Scanalyzers . | . . . . . . . . Garrison Access . | . . . . . . . . Data Cores Recovered 4 | . 1 . 3 . . . . Used 1 | . . . 1 . . . . Hacking Detections 17 | . 7 2 8 . . . . Full Trace Events 3 | . . 1 2 . . . . Feedback Events . | . . . . . . . . Feedback Blocked . | . . . . . . . . Robot Schematics Acquired . | . . . . . . . . Robots Built . | . . . . . . . . Authchips . | . . . . . . . . Time . | . . . . . . . . Total Robot Build Rating . | . . . . . . . . Part Schematics Acquired . | . . . . . . . . Parts Built . | . . . . . . . . Authchips . | . . . . . . . . Time . | . . . . . . . . Total Part Build Rating . | . . . . . . . . Parts Repaired . | . . . . . . . . Time . | . . . . . . . . Parts Recycled . | . . . . . . . . Recycled Matter . | . . . . . . . . Retrieved Matter . | . . . . . . . . Retrieved Components . | . . . . . . . . Parts Scanalyzed . | . . . . . . . . Part Schematics Acquired . | . . . . . . . . Parts Damaged . | . . . . . . . . Bothacking | -11 -10 -10 -9 -9 -9 -8 -8 ------------ Run | Yrd Mat Min Mat Min Exi Min Mat Used RIF Installer . | . . . . . . . . Robots Hacked . | . . . . . . . . Non-combat . | . . . . . . . . Combat . | . . . . . . . . Robot Hacks Applied . | . . . . . . . . Relay Couplers Released . | . . . . . . . . Fabnet Peak Effective % . | . . . . . . . . Robots Rewired . | . . . . . . . . Allies Hacked . | . . . . . . . . Hacks Repelled . | . . . . . . . . Allies | -11 -10 -10 -9 -9 -9 -8 -8 -------- Run | Yrd Mat Min Mat Min Exi Min Mat Total Allies 5 | . . 3 . 2 . . . Largest Group 3 | . . 3 3 2 2 . . Highest-Rated Group 42 | . . 40 40 42 42 . . Highest-Rated Ally 31 | . . 16 16 31 31 . . Total Orders . | . . . . . . . . Ally Attacks 51 | . . . 47 4 . . . Total Damage 541 | . . . 478 63 . . . Kills 10 | . . . 9 1 . . . Allies Corrupted . | . . . . . . . . Allies Melted . | . . . . . . . . Intel | -11 -10 -10 -9 -9 -9 -8 -8 ------- Run | Yrd Mat Min Mat Min Exi Min Mat Robot Analysis Total . | . . . . . . . . Derelict Logs Recovered 4 | . . 1 . 3 . . . Drone Launches . | . . . . . . . . Drone Recoveries . | . . . . . . . . Exploration | -11 -10 -10 -9 -9 -9 -8 -8 ------------- Run | Yrd Mat Min Mat Min Exi Min Mat Turns Passed 2114 | 39 611 231 687 289 65 49 143 Spaces Moved 3727 | 27 818 567 1413 479 236 94 93 Core 11 | 11 . . . . . . . Treads 102 | 16 86 . . . . . . Legs . | . . . . . . . . Wheels . | . . . . . . . . Hover 32 | . 32 . . . . . . Flight 3582 | . 700 567 1413 479 236 94 93 Fastest Speed 26 | 50 32 29 26 26 26 26 26 Average Speed 31 | 115 46 29 26 26 26 26 26 Slowest Speed 160 | 160 160 32 29 26 26 26 26 Overloaded Moves . | . . . . . . . . Propulsion Burnouts . | . . . . . . . . Robots Hopped 18 | . 6 5 7 . . . . Cave-ins Triggered . | . . . . . . . . Exploration Rate (%) 57 | 4 85 95 97 88 46 34 14 Regions Visited 7 Branch Regions 4 Pre-discovered Areas 3 | . . 1 . 2 . . . Known Exits Taken 6 | . 1 1 1 1 1 1 . Unknown Exits Taken 1 | 1 . . . . . . . Scrap Searched 1 | . . . . . . 1 . Spaces Dug 1 | . . . 1 . . . . Terrain Destroyed 317 | . . . 9 151 . 65 92 Melee . | . . . . . . . . Projectile 15 | . . . 9 . . 2 4 AOE 302 | . . . . 151 . 63 88 Terrain Rammed . | . . . . . . . . Walls Destroyed . | . . . . . . . . Machines Disabled . | . . . . . . . . Actions | -11 -10 -10 -9 -9 -9 -8 -8 --------- Run | Yrd Mat Min Mat Min Exi Min Mat Total 4306 | 34 937 619 1606 588 239 103 180 Wait 283 | . 33 51 65 67 . . 67 Move 3685 | 26 805 557 1398 478 235 93 93 Hop 17 | . 6 4 7 . . . . Pick Up 18 | 3 10 1 3 . . 1 . Fast Attach 10 | 2 . . 6 . 1 . 1 Attach 12 | 3 5 1 1 . . 2 . Detach 2 | . . . . . 1 1 . Swap 19 | . 2 . 9 8 . . . Drop 20 | . 5 . 13 . 2 . . Fire 179 | . 66 5 65 28 . 5 10 Melee . | . . . . . . . . Ram . | . . . . . . . . Kick . | . . . . . . . . Crush . | . . . . . . . . Escape Stasis . | . . . . . . . . Rewire . | . . . . . . . . Trap . | . . . . . . . . Miscellaneous 61 | . 5 . 39 7 . 1 9 Route ------- -11/Scrapyard -10/Materials (discovered 4 exits: *Mat x3 / *Min) -10/Mines (discovered 2 exits: *Mat x2) -9/Materials (discovered 5 exits: *Mat x3 / *Min x2) -9/Mines (discovered 3 exits: *Mat / *Exi / *Zio) -9/Exiles -8/Mines -8/Materials History --------- Turn | Location | Event 1 | -11/Scrapyard | Upgraded with Propulsion slot (x1) 1 | -11/Scrapyard | Upgraded with Utility slot (x1) 1 | -11/Scrapyard | Upgraded with Weapon slot (x1) 19 | -11/Scrapyard | Discovered new exit (range 12) 40 | -11/Scrapyard | Entered Materials 136 | -10/Materials | Discovered new exit (range 7) 279 | -10/Materials | Discovered new exit (range 16) 284 | -10/Materials | Identified exit to Materials 452 | -10/Materials | Discovered exit to Materials (range 15) 570 | -10/Materials | Core integrity fell below 50% 575 | -10/Materials | Build established: Sprinter 618 | -10/Materials | Discovered exit to Materials (range 5) 649 | -10/Materials | Identified exit to Mines 651 | -10/Materials | Entered Mines 653 | -10/Mines | Reached level 2 653 | -10/Mines | Upgraded with Propulsion slot (x1) 676 | -10/Mines | Assisted by bots powering up and referring to "LRC-V3" 695 | -10/Mines | Received a Rocket Launcher from a helpful Derelict 783 | -10/Mines | Discovered exit to Materials (range 5) 830 | -10/Mines | Discovered exit to Materials (range 15) 882 | -10/Mines | Entered Materials 882 | -9/Materials | Accompanied by 3 allies 883 | -9/Materials | Core integrity fell below 50% 884 | -9/Materials | Reached level 3 884 | -9/Materials | Upgraded with Propulsion slot (x1) 955 | -9/Materials | Core integrity fell below 20% 1007 | -9/Materials | Identified exit to Mines 1031 | -9/Materials | Reached level 4 1058 | -9/Materials | Discovered new exit (range 13) 1066 | -9/Materials | Identified exit to Materials 1171 | -9/Materials | Reached level 5 1211 | -9/Materials | Upgraded with Utility slot (x1) 1315 | -9/Materials | Discovered exit to Materials (range 15) 1410 | -9/Materials | Discovered exit to Materials (range 16) 1481 | -9/Materials | Reached level 6 1569 | -9/Materials | Entered Mines 1610 | -9/Mines | Reached level 7 1631 | -9/Mines | Destroyed 7 combat bots 1661 | -9/Mines | Met a Derelict shopkeep closing up shop 1675 | -9/Mines | Assembled infested the area 1742 | -9/Mines | A Derelict revealed a hidden shortcut to a safe place 1744 | -9/Mines | Identified exit to Zion 1749 | -9/Mines | Discovered exit to Materials (range 9) 1751 | -9/Mines | Destroyed 15 combat bots 1797 | -9/Mines | Learned location of Zion (-7) 1802 | -9/Mines | Deemed a non-threat by the Exiles lab entrance 1802 | -9/Mines | Discovered new exit (range 5) 1803 | -9/Mines | Identified exit to Exiles 1858 | -9/Mines | Entered Exiles 1858 | -9/Exiles | Accompanied by 2 allies 1866 | -9/Exiles | Met 8R-AWN 1869 | -9/Exiles | Met EX-HEX 1878 | -9/Exiles | Met EX-BIN 1881 | -9/Exiles | Aligned with FarCom system 1882 | -9/Exiles | Given EX-Vault access code 1888 | -9/Exiles | Led the pair of lost Derelicts to a safe place 1888 | -9/Exiles | Opened EX-Vault 1890 | -9/Exiles | Found YOLO Cannon 1897 | -9/Exiles | Warned to stay clear of 0b10 Research branches 1919 | -9/Exiles | Discovered new exit (range 14) 1922 | -9/Exiles | Identified exit to Mines 1923 | -9/Exiles | Left Exiles lab with YOLO Cannon 1923 | -9/Exiles | Entered Mines 1925 | -8/Mines | Reached level 8 1969 | -8/Mines | Discovered exit to Materials (range 8) 1972 | -8/Mines | Entered Materials 1974 | -8/Materials | Reached level 9 1974 | -8/Materials | Upgraded with Weapon slot (x1) 2006 | -8/Materials | Reached level 10 2045 | -8/Materials | YOLO Cannon suddenly exploded 2046 | -8/Materials | Core integrity fell below 50% 2074 | -8/Materials | Core integrity fell below 20% 2076 | -8/Materials | Lost 4 parts (1n1u2w) 2115 | -8/Materials | Destroyed by Y-45 Defender with Beam Rifle Last Messages --------------- 02031_ Upgraded: Ranged Accuracy (+5) 02033_ W-25 Informer sends out distress signal. 02036_ Used Protomatter to restore core integrity (+57, depleted) 02041_ R-06 Scavenger collects Particle Gun. 02041_ Destroyed Beam Rifle. 02041_ Y-45 Defender suffers critical hit (Meltdown). 02045_ R-06 Scavenger collects Aluminum Leg. 02045_ YOLO Cannon suddenly explodes. 02045_ VTOL Module destroyed. 02045_ Enh. Autogun destroyed. 02045_ Hacking Suite destroyed. 02045_ Core damaged (-494). 02050_ R-06 Scavenger collects Aluminum Leg. 02068_ R-06 Scavenger collects Lgt. Treads. 02084_ R-06 Scavenger collects Lgt. Angular Momentum Engine. 02088_ R-06 Scavenger collects Carbon-fiber Leg. 02094_ Critical hit (Burn: +37). 02103_ R-06 Scavenger collects Heat Sink. 02112_ U-05 Engineer builds a Wall. 02113_ R-06 Scavenger collects Imp. Ion Engine. Map ----- +----------------------------------------------------+ | #????????????????????????? | | ##??? ???????????????????? | | ####+######" " T#???"???????????????????? | | ?# #??# """"" #??? ""??????????????????? | | # #??# #### ""??????????????????? | | # #### ! # ##??????????????? | | # + + """ /???????????????? | | # #### / # """ #???????????????? | | # #??# # """ #???????????????? | | #########??###+######### # #???????????????? | | ??????????????????????## # [ #???????????????? | | ??????????????????????#; #u #???????????????? | | ??????????????????????#; #;"####???????????????? | | ??????????????????????#; % #???????????????? | | ??????????????????????# #???????????????? | | ??????????????????????# %= #???????????????? | | ??????????????????????#; ! #???????????????? | | ??????????????????????#; [" #???????????????? | | ??????????????????????#; ;! R" #???????????????? | | ?????????????########### #[""" +???????????????? | | ?????????????? # #######???????????????? | | ???????????????? """ # ##????????????????????? | | ???????????????? """ ##???????????????????? | | ???????????? """ """ #???????????g???????? | | ??????????# #??????????g????????? | | ?????????????+######## @ #???????????????????? | | ?????????????? ;;;;;; #???????????????????? | | ??????????# #???????????????????? | | ??????????? % Y ##???????????????????? | | ??????????? r #?????????x??????????? | | ???????????? ;;;;;;# #????????????????????? | | ???????????? ;;;;#;########????????????????????? | | ???????????? ;# ? ????????????????????????????? | | ????????????? ?#? "?????????????????????????????? | | ????????????? ??? ??????????????????????????????? | | ???????????????? ???????????????????????????????? | | ???????????????##????????????????????????????????? | | ????????????????????????????????g????????????????? | | ?????????????????????????????????????????????????? | | ?????????????????????????????????????????????????? | | ?????????????????????????????????????????????????? | | ?????????????????????????????????????????????????? | | ?????????????????????????????????????????????????? | | ?????????????????????????????????????????????????? | | ?????????????????????????????????????????????????? | | ?????????????????????????????????????????????????? | | ?????????????????????????????????????????????????? | | ?????????????????????????????????????????????????? | | ?????????????????????????????????????????????????? | | ?????????????????????????????????????????????????? | +----------------------------------------------------+ Best States ------------- Heat Dissipation 73 Energy Generation 12 Energy Capacity 265 Matter Stores 300 Matter Capacity 300 Sight Range 16 Robot Scan Range 20 Terrain Scan Density 10 Propulsion Shielding 66 Evasion (%) 64 Recoil Reduction 2 Offensive Hacking 20 Item Schematics ----------------- None Robot Schematics ------------------ None Fabricated ------------ Nothing Alien Tech Used ----------------- None Achievements -------------- None Challenges ------------ None RPGLIKE | -11 -10 -10 -9 -9 -9 -8 -8 --------- Run | Yrd Mat Min Mat Min Exi Min Mat Levels Raised 9 | . . 1 4 1 . 1 2 XP Earned 17046 | 3000 1365 750 5653 1988 350 1300 2640 XP Spent 16310 | 3000 . 1500 5775 1700 . 1500 2835 Upgrades 52 | 6 . 3 17 11 . 5 10 Propulsion Slot 3 | 1 . 1 1 . . . . Utility Slot 2 | 1 . . 1 . . . . Weapon Slot 2 | 1 . . . . . . 1 Core Integrity 15 | . . . . 10 . . 5 Heat Dissipation 8 | . . . 1 . . 4 3 Mass Support 3 | . . 2 . . . 1 . Inventory Capacity 4 | 3 . . . 1 . . . Sensor Range 10 | . . . 10 . . . . Ranged Accuracy 5 | . . . 4 . . . 1 Protomatter Created 570 | . 71 . 328 65 . 6 100 Integrity Restored 1206 | . 84 . 810 120 . 6 186 Core 1138 | . 84 . 742 120 . 6 186 Parts 68 | . . . 68 . . . . Protomatter Decayed 71 | . . . 35 36 . . . Game ------ Seed ExpertBlastInjector Manual? 0 Play Time 00:34:59 Cumulative 35.7 hours Start 2025.03.24 @ 21:03:03 End 2025.03.24 @ 21:37:11 Sessions 1 Manual Loads 0 Difficulty Rogue Special Mode Winter2019/RPGLIKE Game No. 62 Rogue 62 Adventurer 0 Explorer 0 Win Type - Total 0 Types 0/0/0/0/0/0/0/0/0 Lore% 13 Gallery% 26 Achievement% 29 Wizard Run 0 Options --------- Layout 0 ASCII 0 Keyboard 0 Movement Mouse Keybinds 0 Fullscreen 1 Font 24/Smallcaps Map View 76x56 Zoom Use 0% Tactical HUD 1 Map Filters NONE Filters NONE Steam 1 RUN: 62c65aac-84a5-46ae-9aa2-237c52f2c38e